[Event "*** Titled Tuesday 3|2 Blitz"]
[Site "Chess.com"]
[Date "2016.09.06"]
[Round "8"]
[White "SCIM"]
[Black "talaicito"]
[Result "1-0"]
[WhiteElo "2256"]
[BlackElo "1973"]
[TimeControl "180+2"]
[EndTime "12:41:45 PDT"]
[Termination "SCIM won by resignation"]

1. e4 {[%clk 0:03:01.9]} 1... e6 {[%clk 0:03:01.4]} 2. d4 {[%clk 0:03:01.5]}
2... d5 {[%clk 0:03:02.9]} 3. Nd2 {[%clk 0:03:02.4]} 3... Nf6 {[%clk 0:03:02.9]}
4. e5 {[%clk 0:03:01.8]} 4... Nfd7 {[%clk 0:03:04.3]} 5. Bd3 {[%clk 0:03:02.8]}
5... c5 {[%clk 0:03:05.6]} 6. c3 {[%clk 0:03:02.7]} 6... Nc6 {[%clk 0:03:07]} 7.
Ngf3 {[%clk 0:03:02.2]} 7... cxd4 {[%clk 0:03:08.3]} 8. cxd4 {[%clk 0:03:01.1]}
8... f6 {[%clk 0:03:09.8]} 9. exf6 {[%clk 0:02:53.6]} 9... Nxf6 {[%clk
0:03:10.5]} 10. Nf1 {[%clk 0:02:53.7]} 10... Bd6 {[%clk 0:03:03.6]} 11. Ng3
{[%clk 0:02:53.7]} 11... O-O {[%clk 0:03:01.5]} 12. O-O {[%clk 0:02:53.9]} 12...
Qc7 {[%clk 0:02:40.9]} 13. Re1 {[%clk 0:02:44.5]} 13... Bd7 {[%clk 0:02:39.6]}
14. Bg5 {[%clk 0:02:43.3]} 14... h6 {[%clk 0:02:32.4]} 15. Be3 {[%clk
0:02:42.4]} 15... Rae8 {[%clk 0:02:31.2]} 16. Rc1 {[%clk 0:02:41.6]} 16... Qb8
{[%clk 0:02:09.7]} 17. a3 {[%clk 0:02:33.6]} 17... a6 {[%clk 0:02:07.3]} 18. Qd2
{[%clk 0:02:24.5]} 18... Ng4 {[%clk 0:02:06.3]} 19. Nh4 {[%clk 0:02:16]} 19...
Nxe3 {[%clk 0:02:03]} 20. Rxe3 {[%clk 0:02:05.1]} 20... Bf4 {[%clk 0:02:02.8]}
21. Ng6 {[%clk 0:02:05.9]} 21... Bxe3 {[%clk 0:01:58.6]} 22. Qxe3 {[%clk
0:02:04.6]} 22... Rf6 {[%clk 0:01:56.2]} 23. Bb1 {[%clk 0:02:02.9]} 23... e5
{[%clk 0:01:48.3]} 24. Nh5 {[%clk 0:01:59.5]} 24... Rf7 {[%clk 0:01:35.5]} 25.
Ba2 {[%clk 0:01:33]} 25... exd4 {[%clk 0:01:20.9]} 26. Qd2 {[%clk 0:01:14.6]}
26... Qd6 {[%clk 0:01:17.9]} 27. Nhf4 {[%clk 0:01:10.6]} 27... Be6 {[%clk
0:01:12.2]} 28. Re1 {[%clk 0:01:05.6]} 28... Bd7 {[%clk 0:00:50.4]} 29. Bxd5
{[%clk 0:00:57.9]} 29... Rxe1+ {[%clk 0:00:24.7]} 30. Qxe1 {[%clk 0:00:56.7]}
30... d3 {[%clk 0:00:26.2]} 31. Qd1 {[%clk 0:00:32.9]} 31... Nd8 {[%clk
0:00:24.6]} 32. Bxf7+ {[%clk 0:00:24.9]} 32... Nxf7 {[%clk 0:00:24]} 33. Qxd3
{[%clk 0:00:25.1]} 33... Qxd3 {[%clk 0:00:21.3]} 34. Nxd3 {[%clk 0:00:23]} 34...
Bf5 {[%clk 0:00:22.5]} 35. Ne7+ {[%clk 0:00:22.5]} 35... Kh7 {[%clk 0:00:18.9]}
36. Nxf5 {[%clk 0:00:23.4]} 36... Kg6 {[%clk 0:00:20.1]} 37. g4 {[%clk
0:00:22.2]} 37... h5 {[%clk 0:00:20.2]} 38. h3 {[%clk 0:00:22.2]} 38... Ng5
{[%clk 0:00:18.3]} 39. h4 {[%clk 0:00:20.8]} 39... Nf3+ {[%clk 0:00:16.8]} 40.
Kg2 {[%clk 0:00:20.8]} 40... hxg4 {[%clk 0:00:18.4]} 41. Ne3 {[%clk 0:00:19]}
41... Kh5 {[%clk 0:00:18.6]} 42. Kg3 {[%clk 0:00:19.1]} 42... Nxh4 {[%clk
0:00:19.4]} 43. Nf4+ {[%clk 0:00:19.7]} 43... Kg5 {[%clk 0:00:20.2]} 44. Ne6+
{[%clk 0:00:20.6]} 44... Kf6 {[%clk 0:00:21.2]} 45. Kxh4 {[%clk 0:00:19.3]}
45... Kxe6 {[%clk 0:00:22.4]} 46. Kxg4 {[%clk 0:00:20.3]} 46... Ke5 {[%clk
0:00:23.6]} 47. f4+ {[%clk 0:00:21.2]} 47... Ke4 {[%clk 0:00:24.4]} 48. Nf5
{[%clk 0:00:22.8]} 48... g6 {[%clk 0:00:23.2]} 49. Ne7 {[%clk 0:00:23.4]} 49...
Kd3 {[%clk 0:00:24.4]} 50. Nxg6 {[%clk 0:00:24]} 50... Kc2 {[%clk 0:00:25.9]}
51. f5 {[%clk 0:00:25.4]} 51... Kxb2 {[%clk 0:00:27.6]} 52. f6 {[%clk
0:00:26.9]} 52... Kxa3 {[%clk 0:00:29.3]} 53. f7 {[%clk 0:00:28.1]} 53... b5
{[%clk 0:00:31.2]} 54. f8=Q+ {[%clk 0:00:28.5]} 54... b4 {[%clk 0:00:32.4]} 55.
Ne5 {[%clk 0:00:29]} 55... a5 {[%clk 0:00:31.4]} 56. Nc4+ {[%clk 0:00:29.7]}
56... Ka2 {[%clk 0:00:31.3]} 57. Qc5 {[%clk 0:00:31]} 57... b3 {[%clk
0:00:29.3]} 58. Qf2+ {[%clk 0:00:30.2]} 1-0

[Event "*** Titled Tuesday 3|2 Blitz"]
[Site "Chess.com"]
[Date "2016.09.06"]
[Round "8"]
[White "nihalsarin"]
[Black "goingin33"]
[Result "1-0"]
[WhiteElo "2427"]
[BlackElo "2159"]
[TimeControl "180+2"]
[EndTime "12:41:55 PDT"]
[Termination "nihalsarin won by resignation"]

1. e4 {[%clk 0:03:00.6]} 1... e6 {[%clk 0:02:59.2]} 2. d4 {[%clk 0:03:01.2]}
2... d5 {[%clk 0:02:58.6]} 3. Nd2 {[%clk 0:03:00.2]} 3... Be7 {[%clk 0:02:58.9]}
4. Ngf3 {[%clk 0:02:58.7]} 4... Nf6 {[%clk 0:02:56.5]} 5. e5 {[%clk 0:02:59.6]}
5... Nfd7 {[%clk 0:02:58.1]} 6. Bd3 {[%clk 0:03:00.7]} 6... c5 {[%clk
0:02:59.7]} 7. c3 {[%clk 0:03:02]} 7... Nc6 {[%clk 0:03:01]} 8. O-O {[%clk
0:03:00.5]} 8... g5 {[%clk 0:03:02.2]} 9. h3 {[%clk 0:02:53.8]} 9... h5 {[%clk
0:03:02.7]} 10. g4 {[%clk 0:02:54.9]} 10... hxg4 {[%clk 0:03:02.9]} 11. hxg4
{[%clk 0:02:56.2]} 11... Qb6 {[%clk 0:02:58.1]} 12. dxc5 {[%clk 0:02:37]} 12...
Nxc5 {[%clk 0:02:54.9]} 13. Bc2 {[%clk 0:02:37.3]} 13... Nd7 {[%clk 0:02:43]}
14. Qe2 {[%clk 0:02:34.2]} 14... Qc7 {[%clk 0:02:43.7]} 15. Re1 {[%clk
0:02:33.1]} 15... b6 {[%clk 0:02:31.4]} 16. Nb3 {[%clk 0:02:31.5]} 16... a5
{[%clk 0:02:28.7]} 17. Bd3 {[%clk 0:02:29.9]} 17... Nc5 {[%clk 0:02:15.7]} 18.
Bb5 {[%clk 0:02:29]} 18... Bd7 {[%clk 0:02:12.8]} 19. Kg2 {[%clk 0:02:09.1]}
19... Ne4 {[%clk 0:02:12.1]} 20. Nbd2 {[%clk 0:01:49.7]} 20... Nxe5 {[%clk
0:02:03.9]} 21. Bxd7+ {[%clk 0:01:49.2]} 21... Kxd7 {[%clk 0:02:01.8]} 22. Nxe4
{[%clk 0:01:41.4]} 22... Nxf3 {[%clk 0:02:02.5]} 23. Qxf3 {[%clk 0:01:42.5]}
23... Rh2+ {[%clk 0:01:37.4]} 24. Kg1 {[%clk 0:01:17]} 24... dxe4 {[%clk
0:01:36.2]} 25. Qxe4 {[%clk 0:01:17.2]} 25... Rah8 {[%clk 0:01:36.5]} 26. Be3
{[%clk 0:01:13.1]} 26... Bd6 {[%clk 0:01:24.4]} 27. Kf1 {[%clk 0:01:01.6]} 27...
b5 {[%clk 0:00:57.9]} 28. Rad1 {[%clk 0:00:55.6]} 28... Rh1+ {[%clk 0:00:47.9]}
29. Ke2 {[%clk 0:00:55.6]} 29... Rxe1+ {[%clk 0:00:49.3]} 30. Kxe1 {[%clk
0:00:53.6]} 30... Qc6 {[%clk 0:00:48.4]} 31. Qxc6+ {[%clk 0:00:48.4]} 31... Kxc6
{[%clk 0:00:50.3]} 32. Ke2 {[%clk 0:00:46.1]} 32... f6 {[%clk 0:00:47.1]} 33.
Bd4 {[%clk 0:00:43.4]} 33... e5 {[%clk 0:00:44]} 34. Be3 {[%clk 0:00:44.2]}
34... Rh4 {[%clk 0:00:43]} 35. Kf3 {[%clk 0:00:42.9]} 35... e4+ {[%clk 0:00:42]}
36. Kxe4 {[%clk 0:00:43.6]} 36... Rxg4+ {[%clk 0:00:43.3]} 37. Kf5 {[%clk
0:00:44.6]} 37... Ra4 {[%clk 0:00:43.8]} 38. a3 {[%clk 0:00:40.7]} 38... Be5
{[%clk 0:00:40.7]} 39. Bxg5 {[%clk 0:00:26.9]} 39... Bxc3 {[%clk 0:00:18.7]} 40.
Rc1 {[%clk 0:00:27.5]} 40... fxg5 {[%clk 0:00:17.8]} 41. Rxc3+ {[%clk
0:00:27.2]} 41... Kd6 {[%clk 0:00:19.3]} 42. Kxg5 {[%clk 0:00:27]} 42... b4
{[%clk 0:00:19.6]} 43. Re3 {[%clk 0:00:27]} 43... bxa3 {[%clk 0:00:20.1]} 44.
bxa3 {[%clk 0:00:24.8]} 44... Rc4 {[%clk 0:00:18.4]} 45. f4 {[%clk 0:00:25.5]}
45... Rc1 {[%clk 0:00:18.8]} 46. f5 {[%clk 0:00:26.3]} 46... Rg1+ {[%clk
0:00:19.5]} 47. Kf6 {[%clk 0:00:27.3]} 47... a4 {[%clk 0:00:20.1]} 48. Re4
{[%clk 0:00:27]} 48... Rg8 {[%clk 0:00:16.6]} 49. Rxa4 {[%clk 0:00:27.3]} 49...
Rf8+ {[%clk 0:00:18.1]} 50. Kg6 {[%clk 0:00:28.2]} 50... Rg8+ {[%clk 0:00:19.2]}
51. Kf7 {[%clk 0:00:29.4]} 51... Rg3 {[%clk 0:00:18.4]} 52. Re4 {[%clk
0:00:28.5]} 52... Rxa3 {[%clk 0:00:18.6]} 53. f6 {[%clk 0:00:29.9]} 53... Rg3
{[%clk 0:00:18]} 54. Kf8 {[%clk 0:00:30.1]} 54... Kd7 {[%clk 0:00:19.4]} 55. f7
{[%clk 0:00:31.2]} 55... Rg6 {[%clk 0:00:20.3]} 56. Rd4+ {[%clk 0:00:28.2]}
56... Kc7 {[%clk 0:00:19.9]} 57. Ke7 {[%clk 0:00:27.8]} 1-0

[Event "*** Titled Tuesday 3|2 Blitz"]
[Site "Chess.com"]
[Date "2016.09.06"]
[Round "8"]
[White "Andrejkin"]
[Black "Generalas"]
[Result "1-0"]
[WhiteElo "2201"]
[BlackElo "2150"]
[TimeControl "180+2"]
[EndTime "12:42:31 PDT"]
[Termination "Andrejkin won by resignation"]

1. d4 {[%clk 0:03:01.9]} 1... Nf6 {[%clk 0:02:59.8]} 2. c4 {[%clk 0:03:02.5]}
2... c5 {[%clk 0:03:00.7]} 3. d5 {[%clk 0:03:02.8]} 3... b5 {[%clk 0:03:01.7]}
4. cxb5 {[%clk 0:03:04.7]} 4... a6 {[%clk 0:03:02.7]} 5. bxa6 {[%clk 0:03:06.6]}
5... g6 {[%clk 0:03:03.9]} 6. Nc3 {[%clk 0:03:07.2]} 6... Bxa6 {[%clk
0:03:04.7]} 7. e4 {[%clk 0:03:07.8]} 7... Bxf1 {[%clk 0:03:05.4]} 8. Kxf1 {[%clk
0:03:09.7]} 8... d6 {[%clk 0:03:06.7]} 9. Nf3 {[%clk 0:03:10.8]} 9... Bg7 {[%clk
0:03:06.8]} 10. g3 {[%clk 0:03:12.1]} 10... Nbd7 {[%clk 0:03:07.7]} 11. Kg2
{[%clk 0:03:13.2]} 11... O-O {[%clk 0:03:04.3]} 12. a4 {[%clk 0:03:13.8]} 12...
Qb6 {[%clk 0:03:00.3]} 13. Qe2 {[%clk 0:03:11.8]} 13... Rfb8 {[%clk 0:02:59.4]}
14. Ra3 {[%clk 0:03:06.8]} 14... Ne8 {[%clk 0:02:53.1]} 15. Nb5 {[%clk
0:03:04.6]} 15... Qa6 {[%clk 0:02:41.7]} 16. Re1 {[%clk 0:02:59]} 16... Rb7
{[%clk 0:01:37.7]} 17. b3 {[%clk 0:02:58.7]} 17... Rab8 {[%clk 0:01:20.5]} 18.
Nd2 {[%clk 0:02:52.3]} 18... Nc7 {[%clk 0:00:54.6]} 19. Nxc7 {[%clk 0:02:50.5]}
19... Qxe2 {[%clk 0:00:55.2]} 20. Rxe2 {[%clk 0:02:51.2]} 20... Rxc7 {[%clk
0:00:57.1]} 21. Nc4 {[%clk 0:02:21.5]} 21... Rcb7 {[%clk 0:00:56.1]} 22. Re3
{[%clk 0:02:18.3]} 22... Bd4 {[%clk 0:00:51.6]} 23. Rd3 {[%clk 0:02:18.3]} 23...
Ne5 {[%clk 0:00:46.3]} 24. Nxe5 {[%clk 0:02:18.4]} 24... Bxe5 {[%clk 0:00:36.4]}
25. a5 {[%clk 0:02:18.5]} 25... Ra8 {[%clk 0:00:32.2]} 26. Bd2 {[%clk
0:02:16.1]} 26... Kf8 {[%clk 0:00:31]} 27. Be1 {[%clk 0:01:17.2]} 27... Ke8
{[%clk 0:00:30]} 28. f4 {[%clk 0:01:17.6]} 28... Bg7 {[%clk 0:00:22.7]} 29. Kf3
{[%clk 0:01:17.4]} 29... Kd7 {[%clk 0:00:23.3]} 30. Ke2 {[%clk 0:01:07.5]} 30...
Ra6 {[%clk 0:00:21.7]} 31. Kd2 {[%clk 0:01:03]} 31... Rb4 {[%clk 0:00:20.7]} 32.
Re3 {[%clk 0:00:57]} 32... Rd4+ {[%clk 0:00:18.5]} 33. Kc2 {[%clk 0:00:56.1]}
33... e6 {[%clk 0:00:17.2]} 34. Bc3 {[%clk 0:00:55.8]} 34... exd5 {[%clk
0:00:14.2]} 35. exd5 {[%clk 0:00:56.3]} 35... c4 {[%clk 0:00:07.4]} 36. Bxd4
{[%clk 0:00:53.9]} 36... Bxd4 {[%clk 0:00:08.2]} 37. Re4 {[%clk 0:00:54.3]}
37... cxb3+ {[%clk 0:00:09.1]} 38. Kxb3 {[%clk 0:00:53.4]} 38... Bg1 {[%clk
0:00:09.8]} 39. Re2 {[%clk 0:00:51.8]} 39... Bc5 {[%clk 0:00:09.7]} 40. Raa2
{[%clk 0:00:51.1]} 40... Ba7 {[%clk 0:00:08.9]} 41. Kc4 {[%clk 0:00:50.7]} 41...
Bb8 {[%clk 0:00:07.4]} 42. Kb5 {[%clk 0:00:50.9]} 42... Ra7 {[%clk 0:00:06.3]}
43. a6 {[%clk 0:00:51.8]} 43... Bc7 {[%clk 0:00:06.7]} 44. Rac2 {[%clk
0:00:48.8]} 44... Bd8 {[%clk 0:00:06.9]} 45. Rc6 {[%clk 0:00:48]} 45... h5
{[%clk 0:00:06.9]} 46. Rec2 {[%clk 0:00:37.8]} 46... Ra8 {[%clk 0:00:07.3]} 47.
Kc4 {[%clk 0:00:34.6]} 47... Ra7 {[%clk 0:00:07.7]} 48. Kd4 {[%clk 0:00:34.9]}
48... Ra8 {[%clk 0:00:08.5]} 49. Ke4 {[%clk 0:00:35.8]} 49... Ra7 {[%clk
0:00:08.9]} 50. h3 {[%clk 0:00:34.9]} 50... Ra8 {[%clk 0:00:09.7]} 51. Ra2
{[%clk 0:00:34.4]} 51... Ra7 {[%clk 0:00:10.1]} 52. Kf3 {[%clk 0:00:32.7]} 52...
Bc7 {[%clk 0:00:10.2]} 53. g4 {[%clk 0:00:31]} 53... h4 {[%clk 0:00:10.4]} 54.
Ke4 {[%clk 0:00:30.4]} 54... Bd8 {[%clk 0:00:11]} 55. g5 {[%clk 0:00:30]} 55...
Bc7 {[%clk 0:00:10.2]} 56. Kf3 {[%clk 0:00:30.8]} 56... Bd8 {[%clk 0:00:07.8]}
57. Kg4 {[%clk 0:00:31.3]} 57... f6 {[%clk 0:00:09.1]} 58. Kxh4 {[%clk
0:00:31.7]} 58... f5 {[%clk 0:00:09]} 59. Kg3 {[%clk 0:00:32.1]} 59... Ke7
{[%clk 0:00:07.2]} 60. Rb2 {[%clk 0:00:31.7]} 1-0

[Event "*** Titled Tuesday 3|2 Blitz"]
[Site "Chess.com"]
[Date "2016.09.06"]
[Round "9"]
[White "OparinGrigoriy"]
[Black "GianmarcoVaR"]
[Result "1-0"]
[WhiteElo "2596"]
[BlackElo "2419"]
[TimeControl "180+2"]
[EndTime "12:50:23 PDT"]
[Termination "OparinGrigoriy won by resignation"]

1. e4 {[%clk 0:03:02]} 1... c6 {[%clk 0:02:58.9]} 2. Nc3 {[%clk 0:03:03.9]} 2...
d5 {[%clk 0:03:00.1]} 3. Nf3 {[%clk 0:03:05.8]} 3... Bg4 {[%clk 0:03:01.4]} 4.
h3 {[%clk 0:03:07.1]} 4... Bxf3 {[%clk 0:03:02.7]} 5. Qxf3 {[%clk 0:03:09]} 5...
Nf6 {[%clk 0:03:02.4]} 6. g3 {[%clk 0:03:10.6]} 6... e6 {[%clk 0:02:57.2]} 7.
Bg2 {[%clk 0:03:11.3]} 7... Bb4 {[%clk 0:02:56.3]} 8. O-O {[%clk 0:03:11.8]}
8... Bxc3 {[%clk 0:02:55.1]} 9. Qxc3 {[%clk 0:03:13.7]} 9... O-O {[%clk
0:02:53.8]} 10. exd5 {[%clk 0:03:13.7]} 10... cxd5 {[%clk 0:02:54]} 11. Qb3
{[%clk 0:03:08.5]} 11... Qc7 {[%clk 0:02:47.8]} 12. c3 {[%clk 0:03:09.9]} 12...
Nc6 {[%clk 0:02:44.4]} 13. d3 {[%clk 0:03:11]} 13... Rfe8 {[%clk 0:02:39.3]} 14.
Re1 {[%clk 0:03:11.8]} 14... h6 {[%clk 0:02:40.2]} 15. a4 {[%clk 0:03:12.6]}
15... Qb6 {[%clk 0:02:40.8]} 16. Qxb6 {[%clk 0:03:12.9]} 16... axb6 {[%clk
0:02:42.3]} 17. Be3 {[%clk 0:03:14.4]} 17... Ra6 {[%clk 0:02:43.2]} 18. b4
{[%clk 0:03:15.4]} 18... Nd7 {[%clk 0:02:40.8]} 19. b5 {[%clk 0:03:16.2]} 1-0

[Event "*** Titled Tuesday 3|2 Blitz"]
[Site "Chess.com"]
[Date "2016.09.06"]
[Round "9"]
[White "nonscitis"]
[Black "mwpchess"]
[Result "1/2-1/2"]
[WhiteElo "2350"]
[BlackElo "2434"]
[TimeControl "180+2"]
[EndTime "12:50:40 PDT"]
[Termination "Game drawn by agreement"]

1. e4 {[%clk 0:03:02]} 1... c6 {[%clk 0:03:00.4]} 2. Nc3 {[%clk 0:02:58.7]} 2...
d5 {[%clk 0:03:00.8]} 3. Nf3 {[%clk 0:02:56.2]} 3... Bg4 {[%clk 0:02:58.3]} 4.
h3 {[%clk 0:02:55.6]} 4... Bxf3 {[%clk 0:02:59.3]} 5. Qxf3 {[%clk 0:02:55.9]}
5... e6 {[%clk 0:03:00.3]} 6. d4 {[%clk 0:02:56.4]} 6... Nf6 {[%clk 0:03:00.1]}
7. Bd3 {[%clk 0:02:52.6]} 7... dxe4 {[%clk 0:03:00.8]} 8. Nxe4 {[%clk
0:02:53.2]} 8... Nxe4 {[%clk 0:03:01.8]} 9. Bxe4 {[%clk 0:02:47.1]} 9... Nd7
{[%clk 0:03:01.2]} 10. c3 {[%clk 0:02:45.6]} 10... Nf6 {[%clk 0:03:01.4]} 11.
Bg5 {[%clk 0:02:38]} 11... Be7 {[%clk 0:02:58.3]} 12. Bxf6 {[%clk 0:02:18.4]}
12... Bxf6 {[%clk 0:02:54.6]} 13. O-O {[%clk 0:02:18.9]} 1/2-1/2

[Event "*** Titled Tuesday 3|2 Blitz"]
[Site "Chess.com"]
[Date "2016.09.06"]
[Round "9"]
[White "DeviatkinAndrey"]
[Black "lionheart95"]
[Result "0-1"]
[WhiteElo "2587"]
[BlackElo "2483"]
[TimeControl "180+2"]
[EndTime "12:53:15 PDT"]
[Termination "lionheart95 won by resignation"]

1. e4 {[%clk 0:03:02]} 1... e5 {[%clk 0:03:00.6]} 2. Nf3 {[%clk 0:03:02.5]} 2...
Nc6 {[%clk 0:03:02.1]} 3. Bb5 {[%clk 0:03:03.7]} 3... g6 {[%clk 0:03:03.3]} 4.
h4 {[%clk 0:03:02.6]} 4... h6 {[%clk 0:03:01.1]} 5. h5 {[%clk 0:03:03.6]} 5...
g5 {[%clk 0:03:01.3]} 6. d3 {[%clk 0:03:01.4]} 6... Bg7 {[%clk 0:02:57]} 7. Nbd2
{[%clk 0:02:58.4]} 7... Nge7 {[%clk 0:02:58.3]} 8. Nc4 {[%clk 0:02:58.9]} 8...
a6 {[%clk 0:02:57.7]} 9. Bxc6 {[%clk 0:02:58.6]} 9... Nxc6 {[%clk 0:02:58.8]}
10. b3 {[%clk 0:02:34.3]} 10... O-O {[%clk 0:02:53.2]} 11. Bb2 {[%clk
0:02:34.5]} 11... d6 {[%clk 0:02:51.2]} 12. Ne3 {[%clk 0:02:35.1]} 12... Ne7
{[%clk 0:02:52.6]} 13. g4 {[%clk 0:02:35.4]} 13... c6 {[%clk 0:02:51.4]} 14. d4
{[%clk 0:02:35.8]} 14... d5 {[%clk 0:02:44.6]} 15. dxe5 {[%clk 0:02:30.9]} 15...
dxe4 {[%clk 0:02:45.6]} 16. Qxd8 {[%clk 0:02:31.8]} 16... Rxd8 {[%clk
0:02:46.7]} 17. Nd2 {[%clk 0:02:33.5]} 17... Nd5 {[%clk 0:02:47.3]} 18. Nxe4
{[%clk 0:02:33.9]} 18... Nxe3 {[%clk 0:02:47.6]} 19. fxe3 {[%clk 0:02:34.8]}
19... Bxg4 {[%clk 0:02:49.2]} 20. Nd6 {[%clk 0:02:23.2]} 20... Rxd6 {[%clk
0:02:40.6]} 21. exd6 {[%clk 0:02:21.7]} 21... Bxb2 {[%clk 0:02:42.1]} 22. Rb1
{[%clk 0:02:23.4]} 22... Be5 {[%clk 0:02:41.4]} 23. Rg1 {[%clk 0:02:13.1]} 23...
Bxh5 {[%clk 0:02:40.6]} 24. Rh1 {[%clk 0:02:14.6]} 24... Bg6 {[%clk 0:02:40.1]}
25. Rxh6 {[%clk 0:02:15.9]} 25... Bxd6 {[%clk 0:02:41.2]} 26. Rd1 {[%clk
0:02:13.1]} 26... Bb4+ {[%clk 0:02:39.3]} 27. Ke2 {[%clk 0:02:14.3]} 27... Kg7
{[%clk 0:02:39.4]} 28. Rh2 {[%clk 0:02:11.3]} 28... Re8 {[%clk 0:02:40.5]} 29.
c4 {[%clk 0:02:11.7]} 29... Bc5 {[%clk 0:02:38.7]} 30. Rh3 {[%clk 0:02:12.8]}
30... Bxe3 {[%clk 0:02:38.4]} 31. Rxe3 {[%clk 0:01:41.8]} 31... Bh5+ {[%clk
0:02:38.4]} 0-1

[Event "*** Titled Tuesday 3|2 Blitz"]
[Site "Chess.com"]
[Date "2016.09.06"]
[Round "9"]
[White "cassoulet"]
[Black "popov_m"]
[Result "1-0"]
[WhiteElo "2309"]
[BlackElo "2142"]
[TimeControl "180+2"]
[EndTime "12:53:34 PDT"]
[Termination "cassoulet won by resignation"]

1. e4 {[%clk 0:03:01.9]} 1... e6 {[%clk 0:03:00.6]} 2. d4 {[%clk 0:03:01.7]}
2... d5 {[%clk 0:03:01.3]} 3. Nc3 {[%clk 0:03:03.6]} 3... Bb4 {[%clk 0:03:01.8]}
4. Ne2 {[%clk 0:03:03.4]} 4... Nc6 {[%clk 0:02:59]} 5. a3 {[%clk 0:03:02.7]}
5... Ba5 {[%clk 0:03:00.1]} 6. exd5 {[%clk 0:03:00.3]} 6... exd5 {[%clk
0:02:58.6]} 7. Ng3 {[%clk 0:03:01.9]} 7... Bxc3+ {[%clk 0:02:53]} 8. bxc3 {[%clk
0:03:02.3]} 8... Nge7 {[%clk 0:02:51.6]} 9. Bd3 {[%clk 0:03:00.9]} 9... Be6
{[%clk 0:02:48.7]} 10. O-O {[%clk 0:02:57.6]} 10... Qd7 {[%clk 0:02:48.6]} 11.
f4 {[%clk 0:02:54.8]} 11... g6 {[%clk 0:02:24.5]} 12. f5 {[%clk 0:02:55.4]}
12... gxf5 {[%clk 0:02:23.4]} 13. Nh5 {[%clk 0:02:56.1]} 13... Ng8 {[%clk
0:01:49.5]} 14. Bg5 {[%clk 0:02:55]} 14... h6 {[%clk 0:01:40.7]} 15. Bh4 {[%clk
0:02:40.6]} 15... Nce7 {[%clk 0:01:32.4]} 16. Ng7+ {[%clk 0:02:33]} 16... Kd8
{[%clk 0:01:29.9]} 17. Nxf5 {[%clk 0:02:26.3]} 17... Kc8 {[%clk 0:01:25.1]} 18.
Ng7 {[%clk 0:02:16.7]} 18... f5 {[%clk 0:00:53]} 19. Qe2 {[%clk 0:02:14.8]}
19... Bf7 {[%clk 0:00:44.4]} 20. Nxf5 {[%clk 0:02:14.8]} 1-0

[Event "*** Titled Tuesday 3|2 Blitz"]
[Site "Chess.com"]
[Date "2016.09.06"]
[Round "9"]
[White "Usurpov"]
[Black "putinwarrior"]
[Result "1-0"]
[WhiteElo "2329"]
[BlackElo "2342"]
[TimeControl "180+2"]
[EndTime "12:54:01 PDT"]
[Termination "Usurpov won by resignation"]

1. e4 {[%clk 0:03:01.9]} 1... Nc6 {[%clk 0:02:59.8]} 2. Nf3 {[%clk 0:03:02.6]}
2... f5 {[%clk 0:02:57.8]} 3. d3 {[%clk 0:02:40.8]} 3... d6 {[%clk 0:02:53.1]}
4. g3 {[%clk 0:02:38.1]} 4... Nf6 {[%clk 0:02:51.7]} 5. exf5 {[%clk 0:02:35.8]}
5... Bxf5 {[%clk 0:02:49]} 6. d4 {[%clk 0:02:35.9]} 6... e6 {[%clk 0:02:43.1]}
7. Bg2 {[%clk 0:02:34.9]} 7... Be7 {[%clk 0:02:42.3]} 8. O-O {[%clk 0:02:35.5]}
8... O-O {[%clk 0:02:43.9]} 9. Re1 {[%clk 0:02:35.3]} 9... Bg4 {[%clk 0:02:40]}
10. h3 {[%clk 0:02:33.4]} 10... Bf5 {[%clk 0:02:34.9]} 11. g4 {[%clk 0:02:28.3]}
11... Be4 {[%clk 0:02:33.2]} 12. Nbd2 {[%clk 0:02:25.3]} 12... d5 {[%clk
0:02:25.6]} 13. c3 {[%clk 0:02:25.1]} 13... Bd6 {[%clk 0:02:25.5]} 14. Ng5
{[%clk 0:02:18.9]} 14... Bxg2 {[%clk 0:02:13.2]} 15. Kxg2 {[%clk 0:02:20.8]}
15... Ne4 {[%clk 0:02:12.1]} 16. Ndxe4 {[%clk 0:02:18.6]} 16... dxe4 {[%clk
0:02:12.2]} 17. Nxe6 {[%clk 0:02:09.6]} 17... Qf6 {[%clk 0:02:06.8]} 18. Nxf8
{[%clk 0:02:02]} 18... Rxf8 {[%clk 0:02:08.7]} 19. Qe2 {[%clk 0:01:54.4]} 19...
Ne7 {[%clk 0:02:08.4]} 20. Rf1 {[%clk 0:01:40.8]} 20... Ng6 {[%clk 0:02:03.7]}
21. Qxe4 {[%clk 0:01:35.2]} 21... Nh4+ {[%clk 0:02:01.4]} 22. Kh1 {[%clk
0:01:32]} 22... Qxf2 {[%clk 0:02:02.4]} 23. Rxf2 {[%clk 0:01:27.3]} 23... Rxf2
{[%clk 0:02:04.3]} 24. Be3 {[%clk 0:01:12.2]} 24... Rh2+ {[%clk 0:02:01.5]} 25.
Kg1 {[%clk 0:01:12.6]} 25... Rxh3 {[%clk 0:02:02.4]} 26. Qe8+ {[%clk 0:01:08.7]}
26... Bf8 {[%clk 0:02:02.6]} 27. Rf1 {[%clk 0:01:08.6]} 27... Rg3+ {[%clk
0:01:59.6]} 28. Kh2 {[%clk 0:01:09.1]} 1-0

[Event "*** Titled Tuesday 3|2 Blitz"]
[Site "Chess.com"]
[Date "2016.09.06"]
[Round "9"]
[White "SavelijTartakover"]
[Black "RodinMihail"]
[Result "1-0"]
[WhiteElo "2468"]
[BlackElo "2338"]
[TimeControl "180+2"]
[EndTime "12:54:17 PDT"]
[Termination "SavelijTartakover won by checkmate"]

1. d4 {[%clk 0:03:00.2]} 1... d5 {[%clk 0:03:00.6]} 2. c4 {[%clk 0:03:00.8]}
2... e6 {[%clk 0:03:01.8]} 3. Nf3 {[%clk 0:03:01.1]} 3... Nf6 {[%clk 0:03:02.4]}
4. Nc3 {[%clk 0:03:00.1]} 4... c6 {[%clk 0:03:03.5]} 5. cxd5 {[%clk 0:02:58]}
5... exd5 {[%clk 0:03:04.1]} 6. Qc2 {[%clk 0:02:54.9]} 6... g6 {[%clk
0:03:03.7]} 7. Bg5 {[%clk 0:02:54.3]} 7... Be7 {[%clk 0:03:04.5]} 8. e4 {[%clk
0:02:53.2]} 8... dxe4 {[%clk 0:03:01.8]} 9. Bxf6 {[%clk 0:02:53.7]} 9... Bxf6
{[%clk 0:03:02.5]} 10. Qxe4+ {[%clk 0:02:55.2]} 10... Qe7 {[%clk 0:02:59.2]} 11.
O-O-O {[%clk 0:02:52]} 11... O-O {[%clk 0:02:52.5]} 12. Bc4 {[%clk 0:02:50.8]}
12... Qb4 {[%clk 0:02:35.8]} 13. Bb3 {[%clk 0:02:43.7]} 13... Bf5 {[%clk
0:02:35.6]} 14. Qf4 {[%clk 0:02:44.1]} 14... Bg7 {[%clk 0:02:21.6]} 15. h4
{[%clk 0:02:44.1]} 15... h5 {[%clk 0:02:11.9]} 16. Ne5 {[%clk 0:02:30.8]} 16...
Nd7 {[%clk 0:02:03.5]} 17. g4 {[%clk 0:02:30.7]} 17... Bxe5 {[%clk 0:01:54.6]}
18. Qd2 {[%clk 0:02:30.2]} 18... Bxg4 {[%clk 0:01:46.6]} 19. dxe5 {[%clk
0:02:30.3]} 19... Nxe5 {[%clk 0:01:46.4]} 20. Qd6 {[%clk 0:02:22.1]} 20... Qf4+
{[%clk 0:01:32.9]} 21. Qd2 {[%clk 0:02:22.3]} 21... Qf3 {[%clk 0:01:28.8]} 22.
Rhe1 {[%clk 0:02:11]} 22... Rad8 {[%clk 0:01:25.5]} 23. Qxd8 {[%clk 0:02:08]}
23... Rxd8 {[%clk 0:01:23.4]} 24. Rxd8+ {[%clk 0:02:08.6]} 24... Kg7 {[%clk
0:01:25.3]} 25. Rxe5 {[%clk 0:02:07.7]} 25... Qf4+ {[%clk 0:01:12]} 26. Re3
{[%clk 0:02:07.8]} 26... Qxf2 {[%clk 0:01:13.5]} 27. Re7 {[%clk 0:02:02]} 27...
Qxh4 {[%clk 0:00:54.4]} 28. Rxf7+ {[%clk 0:01:59.3]} 28... Kh6 {[%clk 0:00:56]}
29. Rh8+ {[%clk 0:01:58.5]} 29... Kg5 {[%clk 0:00:56.9]} 30. Ne4# {[%clk
0:01:59.3]} 1-0